bitfinex/quotes_ETHUSD_20250703
["timestamp","ask_amount","ask_price","bid_price","bid_amount"]
[1751513406378,41.26684703,2573.0,2572.9,0.02]
[1751513406577,45.15336082,2573.0,2572.9,0.02]
[1751513410079,45.70336082,2573.0,2572.9,0.02]
[1751513410277,46.93639365,2573.0,2572.9,0.02]
[1751513411407,47.37660602,2573.0,2572.9,1e-08]
[1751513412611,13.8874203,2572.4,2572.3,0.02]
[1751513412770,24.53819755,2572.4,2572.3,0.02]
[1751513423020,25.08819755,2572.4,2572.3,0.02]
[1751513423229,25.84609755,2572.4,2572.3,0.02]
[1751513423410,33.83609755,2572.4,2572.3,0.02]
[1751513423621,38.4272369,2572.4,2572.3,0.02]
[1751513424505,37.6565369,2572.4,2572.3,0.02]
[1751513427900,27.0876369,2572.4,2572.3,0.02]
[1751513428100,29.18977725,2572.4,2572.3,0.02]
[1751513428340,33.07719755,2572.4,2572.3,0.02]
[1751513429631,33.09142275,2572.4,2572.3,0.02]
[1751513432916,25.10142275,2572.4,2572.3,0.02]
[1751513433614,32.35045318,2572.4,2572.3,0.02]
[1751513433817,35.97422742,2572.4,2572.3,0.02]
[1751513434537,36.76592742,2572.4,2572.3,0.02]
[1751513438224,35.97422742,2572.4,2572.3,0.02]
[1751513439631,26.16422742,2572.4,2572.3,0.02]
[1751513440154,35.97322742,2572.4,2572.3,0.02]
[1751513440354,26.16422742,2572.4,2572.3,0.02]
[1751513440556,22.27680712,2572.4,2572.3,0.02]
[1751513440742,28.72419699,2572.4,2572.3,0.02]
[1751513456974,28.72319699,2572.4,2572.3,0.02]
[1751513460784,35.97222742,2572.4,2572.3,0.02]
[1751513461688,35.11822497,2572.4,2572.3,0.02]
[1751513461888,35.97437343,2572.4,2572.3,0.02]
[1751513462479,36.79477343,2572.4,2572.3,0.02]
[1751513464162,37.23220626,2572.4,2572.3,0.02]
[1751513464376,37.99530626,2572.4,2572.3,0.02]
[1751513464792,37.23220626,2572.4,2572.3,0.02]
[1751513465207,4.43817605,2571.9,2571.8,0.02]
[1751513465410,29.57020648,2571.9,2571.8,0.02]
[1751513465574,30.42635494,2571.9,2571.8,0.02]
[1751513467615,30.42568943,2571.9,2571.8,0.02]
[1751513469717,23.176659,2571.9,2571.8,0.02]
[1751513470311,26.71188034,2571.9,2571.8,0.02]
[1751513475001,26.70600306,2571.9,2571.8,0.02]
[1751513478212,22.27370429,2571.9,2571.8,0.02]
[1751513478417,18.73848295,2571.9,2571.8,0.02]
[1751513479315,22.626659,2571.9,2571.8,0.02]
[1751513481004,22.646659,2571.9,2571.8,0.02]
[1751513481517,24.569659,2571.9,2571.8,0.02]
[1751513482529,20.68048295,2571.9,2571.8,0.02]
[1751513489538,19.825,2571.9,2571.8,0.02]
[1751513489748,20.67943437,2571.9,2571.8,0.02]
[1751513494338,0.2144,2571.9,2571.8,0.8195]
[1751513495471,0.02,2571.9,2571.8,0.8195]
[1751513502489,0.23364,2571.9,2571.8,0.02]
[1751513503177,14.12181605,2571.9,2571.8,0.02]
[1751513503757,10.23364,2571.9,2571.8,0.02]
[1751513504168,14.12181605,2571.9,2571.8,0.02]
[1751513505081,11.08602472,2571.9,2571.8,0.02]
[1751513505267,10.23364,2571.9,2571.8,0.02]
[1751513506385,10.02,2571.9,2571.8,0.02]
[1751513514173,10.87347839,2571.9,2571.8,0.02]
[1751513514407,14.76165444,2571.9,2571.8,0.02]
[1751513514614,10.87347839,2571.9,2571.8,0.02]
[1751513525790,10.02,2571.9,2571.8,0.02]
[1751513526427,10.87464196,2571.9,2571.8,0.02]
[1751513528229,0.87464196,2571.9,2571.8,0.02]
[1751513528415,0.2144,2571.9,2571.8,0.7755]
[1751513528624,0.02,2571.9,2571.8,0.7755]
[1751513544161,0.02,2571.9,2571.8,0.02]
[1751513545142,1.52050506,2571.9,2571.8,0.02]
[1751513545850,5.40868111,2571.9,2571.8,0.02]
[1751513548629,1.52050506,2571.9,2571.8,0.02]
[1751513550234,5.40868111,2571.9,2571.8,0.02]
[1751513550436,1.52050506,2571.9,2571.8,0.02]
[1751513551430,5.40868111,2571.9,2571.8,0.02]
[1751513553243,1.52050506,2571.9,2571.8,0.02]
[1751513554142,5.40868111,2571.9,2571.8,0.02]
[1751513555366,1.52050506,2571.9,2571.8,0.02]
[1751513559271,0.70390506,2571.9,2571.8,0.02]
[1751513559570,0.02,2571.9,2571.8,0.02]
[1751513560967,1.939,2571.9,2571.8,0.02]
[1751513567670,2.7572,2571.9,2571.8,0.02]
[1751513568671,25.36842314,2571.9,2571.8,0.02]
[1751513572499,25.36929507,2571.9,2571.8,0.02]
[1751513572701,28.31446764,2571.9,2571.8,0.02]
[1751513576123,24.42629159,2571.9,2571.8,0.02]
[1751513576299,20.66291902,2571.9,2571.8,0.02]
[1751513577314,24.55109507,2571.9,2571.8,0.02]
[1751513578987,20.66291902,2571.9,2571.8,0.02]
[1751513580883,24.55109507,2571.9,2571.8,0.02]
[1751513581209,20.66291902,2571.9,2571.8,0.02]
[1751513581822,24.55109507,2571.9,2571.8,0.02]
[1751513582710,12.78791902,2571.9,2571.8,0.02]
[1751513584200,11.938,2571.9,2571.8,0.02]
[1751513586614,0.02,2571.9,2571.8,0.02]
[1751513586819,0.02,2571.9,2571.8,0.7746]
[1751513587134,0.02,2571.9,2571.8,0.969]
[1751513597011,0.02,2571.9,2571.8,8.839]
[1751513597211,0.02,2571.9,2571.8,8.6446]
[1751513597634,0.02,2571.9,2571.8,0.7746]
[1751513598543,0.02,2571.9,2571.8,0.02]
[1751513602148,0.8027,2571.9,2571.8,0.02]
[1751513602447,1.46357397,2571.9,2571.8,0.02]
[1751513602751,0.8027,2571.9,2571.8,0.02]
[1751513603446,0.02,2571.9,2571.8,0.02]
[1751513604420,0.2144,2571.9,2571.8,0.02]
[1751513604629,0.2144,2571.9,2571.8,7.26903043]
[1751513605133,0.02,2571.9,2571.8,8.07543043]
[1751513605334,0.02,2571.9,2571.8,8.26983043]
[1751513606561,0.1936,2572.7,2572.3,0.8167]
[1751513606761,0.1936,2572.7,2572.6,7.24903043]
[1751513606934,0.01,2572.9,2572.6,7.24903043]
[1751513607136,0.2036,2572.9,2572.7,0.8167]
[1751513611040,0.2036,2572.9,2572.5,8.6818]
[1751513615675,0.2036,2572.9,2572.5,0.8138]
[1751513615877,0.2036,2572.9,2572.5,8.6818]
[1751513617161,0.2036,2572.9,2572.6,7.24903043]
[1751513625380,0.01,2572.9,2572.7,0.1936]
[1751513625887,0.01,2572.9,2572.4,7.24903043]
[1751513626063,0.9598,2572.9,2572.5,0.1936]
[1751513627160,0.7662,2572.9,2572.4,15.11603043]
[1751513627383,0.1936,2572.8,2572.4,15.11603043]
[1751513628484,0.1936,2572.8,2572.3,0.1936]
[1751513628698,0.1936,2572.8,2571.9,8.04763043]
[1751513628699,0.7562,2572.7,2571.9,8.04763043]
[1751513628921,0.1936,2572.4,2572.0,0.1936]
[1751513629200,0.1936,2572.2,2571.9,15.11603043]
[1751513629369,1.917,2572.4,2571.9,15.91463043]
[1751513629567,1.917,2572.4,2572.0,0.1936]
[1751513630492,1.917,2572.4,2571.8,0.02]
[1751513630814,0.1936,2572.3,2571.9,7.867]
[1751513631085,0.1936,2572.3,2571.9,7.887]
[1751513631959,0.1936,2572.3,2571.9,15.13603043]
[1751513632156,0.1936,2572.3,2571.9,7.26903043]
[1751513632355,0.1936,2572.3,2571.9,15.13603043]
[1751513634391,1.917,2572.6,2572.1,8.05473043]
[1751513634607,1.917,2572.6,2572.5,7.24903043]
[1751513635176,0.1936,2572.8,2572.5,15.11603043]
[1751513635375,0.01,2572.9,2572.7,7.44263043]
[1751513635909,0.01,2572.9,2572.7,0.1936]
[1751513636106,0.2036,2572.9,2572.7,7.868]
[1751513643311,0.2036,2572.9,2572.8,8.20293043]
[1751513643312,0.01,2572.9,2572.8,8.20293043]
[1751513643609,0.01,2572.9,2572.8,16.06993043]
[1751513645930,0.01,2572.9,2572.8,15.30963043]
[1751513646133,0.01,2572.9,2572.8,7.44263043]
[1751513646313,0.01,2572.9,2572.8,8.0606]
[1751513647421,0.01,2572.9,2572.8,15.30963043]
[1751513648609,0.01,2572.9,2572.8,29.95814635]
[1751513648804,0.01,2572.9,2572.8,30.31454635]
[1751513649111,0.01,2572.9,2572.8,31.85076228]
[1751513649307,0.01,2572.9,2572.8,30.31454635]
[1751513650408,0.01,2572.9,2572.8,31.85192081]
[1751513651036,0.01,2572.9,2572.8,23.98492081]
[1751513651225,0.01,2572.9,2572.8,31.60477591]
[1751513651406,0.01,2572.9,2572.8,30.06740145]
[1751513651730,0.01,2572.9,2572.8,30.06540145]
[1751513653308,0.01,2572.9,2572.8,22.19640145]
[1751513653637,0.01,2572.9,2572.8,30.06740145]
[1751513654439,0.01,2572.9,2572.7,8.78640489]
[1751513654632,0.01,2572.9,2572.5,0.7563]
[1751513654936,0.01,2572.9,2572.6,7.87]
[1751513655536,0.01,2572.9,2572.2,1.53737446]
[1751513655841,0.01,2572.9,2572.3,7.872]
[1751513656142,0.01,2572.9,2572.2,17.24903043]
[1751513656315,0.01,2572.9,2572.3,7.874]
[1751513657150,0.01,2572.9,2572.1,10.7563]
[1751513657363,0.7935,2572.8,2571.9,0.7763]
[1751513657650,0.7935,2572.8,2572.0,7.874]
[1751513658653,0.7935,2572.8,2572.1,11.13682142]
[1751513658851,0.7935,2572.8,2572.0,7.874]
[1751513658852,0.9871,2572.8,2572.3,7.44263043]
[1751513659025,0.9871,2572.8,2572.4,7.875]
[1751513661854,0.7935,2572.8,2572.4,7.875]
[1751513662170,0.7935,2572.8,2572.4,8.0686]
[1751513662531,0.7935,2572.8,2572.4,0.1936]
[1751513662869,0.1936,2572.6,2572.5,7.874]
[1751513663563,0.1936,2572.6,2572.1,0.1936]
[1751513663741,0.1936,2572.6,2572.2,7.874]
[1751513664438,0.8017,2572.5,2572.2,7.874]
[1751513668571,0.8017,2572.5,2572.1,7.44263043]
[1751513668772,0.8017,2572.5,2572.1,0.1936]
[1751513668949,0.8017,2572.5,2572.2,7.872]
[1751513669149,0.8017,2572.5,2572.1,0.1936]
[1751513669376,0.8017,2572.5,2572.2,7.871]
[1751513669671,0.8017,2572.5,2572.3,7.871]
[1751513670562,0.8017,2572.5,2572.1,0.1936]
[1751513670753,0.8017,2572.5,2571.9,0.02]
[1751513670754,0.1936,2572.3,2571.9,0.02]
[1751513670945,0.1936,2572.1,2571.9,0.02]
[1751513671151,0.8325,2572.0,2571.9,7.895]
[1751513671760,0.8325,2572.0,2571.9,0.02]
[1751513671985,0.8325,2572.0,2571.9,7.894]
[1751513674260,0.8325,2572.0,2571.9,0.02]
[1751513674460,0.8325,2572.0,2571.9,7.894]
[1751513676284,0.8325,2572.0,2571.9,7.893]
[1751513679479,0.8325,2572.0,2571.9,0.02]
[1751513690178,0.8425,2572.0,2571.9,0.02]
[1751513691388,5.39544799,2572.0,2571.9,0.02]
[1751513691689,4.73052488,2572.0,2571.9,0.02]
[1751513694593,0.8425,2572.0,2571.9,0.02]
[1751513695889,4.73052488,2572.0,2571.9,0.02]
[1751513699475,0.8425,2572.0,2571.9,0.02]
[1751513699695,0.01,2572.0,2571.9,0.02]
[1751513704807,0.7865,2572.0,2571.9,0.02]
[1751513705196,1.44582521,2572.0,2571.9,0.02]
[1751513706116,5.33385009,2572.0,2571.9,0.02]
[1751513708111,1.44582521,2572.0,2571.9,0.02]
[1751513709694,5.33385009,2572.0,2571.9,0.02]
[1751513709899,15.33385009,2572.0,2571.9,0.02]
[1751513710073,23.75385009,2572.0,2571.9,0.02]
[1751513727940,27.85085009,2572.0,2571.9,0.02]
[1751513728143,23.75385009,2572.0,2571.9,0.02]
[1751513728626,24.75889256,2572.0,2571.9,0.02]
[1751513730938,25.04886276,2572.0,2571.9,0.02]
[1751513731637,33.03886276,2572.0,2571.9,0.02]
[1751513732023,36.59852507,2572.0,2571.9,1e-08]
[1751513732210,15.16991373,2571.9,2571.8,0.02]
[1751513732413,27.05848351,2571.9,2571.8,0.02]
[1751513736446,27.07848351,2571.9,2571.8,0.02]
[1751513737756,35.06848351,2571.9,2571.8,0.02]
[1751513738060,39.16548351,2571.9,2571.8,1e-08]
[1751513740160,39.16548351,2571.9,2571.2,0.02]
[1751513740161,15.19498334,2571.3,2571.2,0.02]
[1751513740366,43.48940774,2571.3,2571.2,0.02]
[1751513741130,5.19578586,2571.1,2571.0,0.02]
[1751513741468,14.4407478,2570.2,2569.6,0.7953]
[1751513741763,33.68025301,2570.2,2569.4,0.8101]
[1751513741937,3.89198909,2569.4,2569.2,0.8101]
[1751513742143,1.918,2569.3,2569.2,0.8101]
[1751513742926,3.1098,2569.3,2569.1,0.02]
[1751513743432,7.00193946,2569.3,2569.1,0.02]
[1751513743630,3.1098,2569.3,2569.1,0.02]
[1751513745332,1.918,2569.2,2569.1,0.02]
[1751513746530,10.0,2569.5,2569.1,0.02]
[1751513746531,0.55,2569.7,2569.1,0.02]
[1751513746744,1.918,2569.6,2569.1,0.02]
[1751513746949,1.918,2569.5,2569.2,0.8287]
[1751513747775,0.1944,2569.6,2569.2,8.07773043]
[1751513747932,0.1944,2569.9,2569.4,1.0231]
[1751513748135,7.877,2570.4,2569.5,0.8287]
[1751513748136,1.918,2570.0,2569.5,0.8287]
[1751513748363,1.918,2570.0,2569.7,0.1944]
[1751513748542,1.918,2570.0,2569.8,0.8287]
[1751513752077,0.1944,2570.1,2569.8,0.8287]
[1751513757479,1.918,2570.2,2570.1,0.7597]
[1751513758282,0.1944,2570.5,2570.1,0.7597]
[1751513758486,11.56543679,2572.0,2570.3,3.89047889]
[1751513758487,2.1124,2571.0,2570.3,3.89047889]
[1751513758699,1.918,2570.9,2570.4,0.9526]
[1751513758986,1.918,2570.9,2570.5,0.7582]
[1751513759358,0.1944,2570.7,2570.5,0.7582]
[1751513760884,1.938,2570.9,2570.5,0.7582]
[1751513761089,0.1944,2570.6,2570.5,0.7582]
[1751513761984,0.1944,2570.6,2570.2,0.8068]
[1751513762164,0.1944,2570.2,2569.9,0.8068]
[1751513762484,2.1124,2570.2,2569.9,0.8068]
[1751513762666,0.1944,2570.0,2569.9,0.8068]
[1751513764162,0.1944,2570.0,2569.7,0.761]
[1751513773706,0.793,2570.1,2569.5,0.7523]
[1751513773908,0.1944,2569.5,2569.1,0.7974]
[1751513774089,2.1224,2569.4,2569.1,0.7974]
[1751513774893,1.928,2569.4,2569.1,0.02]
[1751513775093,0.1944,2569.2,2569.1,0.02]
[1751513784415,10.0144,2569.2,2569.1,0.02]
[1751513784582,0.1944,2569.2,2569.1,0.02]
[1751513784780,10.0144,2569.2,2569.1,0.02]
[1751513789636,10.0124,2569.2,2569.1,0.02]
[1751513790428,0.1944,2569.2,2569.1,0.02]
[1751513790632,2.1224,2569.2,2569.1,0.02]
[1751513794637,0.1944,2569.2,2569.1,0.02]
[1751513794954,10.0124,2569.2,2569.1,0.02]
[1751513798728,10.7981,2569.2,2569.1,0.02]
[1751513798928,11.87791,2569.2,2569.1,0.02]
[1751513800330,10.7981,2569.2,2569.1,0.02]
[1751513800621,10.0124,2569.2,2569.1,0.02]
[1751513801949,10.0064,2569.2,2569.1,0.02]
[1751513804441,0.1944,2569.2,2569.1,0.02]
[1751513804654,4.46098142,2570.1,2569.1,0.8388]
[1751513804655,1.926,2569.3,2569.1,0.8388]
[1751513804824,0.8199,2569.9,2569.2,7.28136795]
[1751513804825,9.811,2569.5,2569.2,7.28136795]
[1751513805030,1.926,2569.5,2569.2,7.28136795]
[1751513805853,1.926,2569.5,2569.1,1.0332]
[1751513808921,0.1944,2569.6,2569.1,1.0332]
[1751513809253,9.811,2569.5,2569.1,1.0332]
[1751513813362,1.925,2569.5,2569.1,1.0332]
[1751513815755,1.925,2569.4,2569.1,1.0332]
[1751513826068,0.1944,2569.6,2569.1,1.0332]
[1751513826243,1.92,2569.5,2569.1,1.0332]
[1751513827341,1.92,2569.5,2569.2,7.28136795]
[1751513830249,1.92,2569.5,2569.3,0.8178]
[1751513830648,0.1944,2569.6,2569.3,0.8178]
[1751513830846,0.1944,2569.6,2569.2,7.28136795]
[1751513830847,0.02,2570.1,2569.6,0.8178]
[1751513831053,1.92,2569.9,2569.7,7.28136795]
[1751513831269,1.92,2569.9,2569.7,7.47576795]
[1751513832654,0.02,2570.1,2569.7,7.47576795]
[1751513832859,1.92,2570.0,2569.7,7.47576795]
[1751513835876,1.92,2570.0,2569.7,0.1944]
[1751513836952,0.02,2570.1,2569.7,0.1944]
[1751513837151,1.919,2570.0,2569.7,0.1944]
[1751513839359,0.02,2570.1,2569.7,0.1944]
[1751513839561,0.02,2570.1,2569.7,7.47576795]
[1751513842684,0.02,2570.1,2569.7,0.1944]
[1751513843276,1.02904,2570.1,2569.6,0.8178]
[1751513843478,0.1944,2569.7,2569.3,14.08437446]
[1751513843687,0.1944,2569.7,2569.3,4.67]
[1751513843881,0.1944,2569.7,2569.3,12.547]
[1751513845603,0.1944,2569.7,2569.4,7.28136795]
[1751513845897,0.02,2570.1,2569.7,0.7929]
[1751513846202,1.919,2570.0,2569.8,7.28136795]
[1751513849096,0.02,2570.1,2569.8,7.28136795]
[1751513849296,0.02,2570.1,2570.0,7.28136795]
[1751513849599,0.02,2570.1,2569.9,0.9495]
[1751513850306,0.02,2570.1,2569.9,8.0714]
[1751513850803,0.02,2570.1,2569.9,0.1944]
[1751513853640,0.02,2570.1,2569.8,8.0704]
[1751513853777,0.31305,2570.1,2569.8,0.1944]
[1751513854118,0.1944,2569.9,2569.4,0.9802]
[1751513854489,0.1944,2569.9,2569.4,0.1944]
[1751513858824,0.1944,2569.7,2569.2,0.1944]
[1751513859123,1.919,2569.6,2569.2,0.1944]
[1751513860414,1.919,2569.6,2569.2,7.47576795]
[1751513861732,0.1944,2569.7,2569.2,7.47576795]
[1751513862038,0.1944,2569.7,2569.3,8.06006795]
[1751513862328,0.1944,2569.7,2569.3,7.876]
[1751513862532,0.7847,2569.6,2569.2,0.1944]
[1751513868041,0.1944,2569.7,2569.2,0.1944]
[1751513872938,1.919,2569.6,2569.2,0.1944]
[1751513882320,1.919,2569.6,2569.2,1.73177446]
[1751513884849,0.8044,2569.5,2569.2,1.53737446]
[1751513885057,0.1944,2569.4,2569.1,0.02]
[1751513885831,0.7897,2569.3,2569.1,0.02]
[1751513887032,0.9841,2569.3,2569.1,0.02]
[1751513887235,0.7711,2569.2,2569.1,0.02]
[1751513887426,2.25685105,2569.2,2569.1,0.02]
[1751513891943,6.14911323,2569.2,2569.1,0.02]
[1751513892141,23.98048118,2569.2,2569.1,0.02]
[1751513892440,16.69911323,2569.2,2569.1,0.02]
[1751513896359,26.49611323,2569.2,2569.1,0.02]
[1751513899469,12.25685105,2569.2,2569.1,0.02]
[1751513899638,22.05385105,2569.2,2569.1,0.02]
[1751513899833,25.94611323,2569.2,2569.1,0.02]
[1751513901773,22.05385105,2569.2,2569.1,0.02]
[1751513901966,12.25685105,2569.2,2569.1,0.02]
[1751513902167,22.05385105,2569.2,2569.1,0.02]
[1751513906676,25.94611323,2569.2,2569.1,0.02]
[1751513912756,16.14911323,2569.2,2569.1,0.02]
[1751513913054,25.94711323,2569.2,2569.1,0.02]
[1751513913882,22.05485105,2569.2,2569.1,0.02]
[1751513916358,22.05385105,2569.2,2569.1,0.02]
[1751513918555,12.25685105,2569.2,2569.1,0.02]
[1751513918860,22.05385105,2569.2,2569.1,0.02]
[1751513919589,25.94611323,2569.2,2569.1,0.02]
[1751513935216,35.30111323,2569.2,2569.1,0.02]
[1751513937628,35.85111323,2569.2,2569.1,0.02]
[1751513941325,36.69007431,2569.2,2569.1,0.02]
[1751513942428,37.65729118,2569.2,2569.1,0.02]
[1751513943644,37.853935,2569.2,2569.1,0.02]
[1751513946447,28.056935,2569.2,2569.1,0.02]
[1751513946652,37.851935,2569.2,2569.1,0.02]
[1751513948367,28.056935,2569.2,2569.1,0.02]
[1751513948669,37.85062658,2569.2,2569.1,0.02]
[1751513951446,38.00669358,2569.2,2569.1,0.02]
[1751513953175,28.01504976,2569.2,2569.1,0.02]
[1751513953345,16.00291484,2569.2,2569.1,0.02]
[1751513953544,33.87991484,2569.2,2569.1,0.02]
[1751513953750,41.16128279,2569.2,2569.1,0.02]
[1751513953939,41.71128279,2569.2,2569.1,0.02]
[1751513954345,41.71086216,2569.2,2569.1,0.02]
[1751513954578,45.53130151,2569.2,2569.1,0.02]
[1751513957151,45.52930151,2569.2,2569.1,0.02]
[1751513961402,45.52830151,2569.2,2569.1,0.02]
[1751513962622,35.73430151,2569.2,2569.1,0.02]
[1751513962975,45.52730151,2569.2,2569.1,0.02]
[1751513963932,35.73430151,2569.2,2569.1,0.02]
[1751513964206,45.52730151,2569.2,2569.1,0.02]
[1751513964698,35.73430151,2569.2,2569.1,0.02]
[1751513964885,45.52730151,2569.2,2569.1,0.02]
[1751513965081,37.81659998,2569.2,2569.1,0.02]
[1751513965307,29.98623203,2569.2,2569.1,0.02]
[1751513965708,33.87849421,2569.2,2569.1,0.02]
[1751513966191,41.15986216,2569.2,2569.1,0.02]
[1751513969726,41.17986216,2569.2,2569.1,0.02]
[1751513970463,45.19577981,2569.2,2569.1,0.02]
[1751513970846,46.95709668,2569.2,2569.1,0.02]
[1751513975530,45.98887981,2569.2,2569.1,0.02]
[1751513976226,36.19687981,2569.2,2569.1,0.02]
[1751513976427,45.98887981,2569.2,2569.1,0.02]
[1751513976622,36.19687981,2569.2,2569.1,0.02]
[1751513976829,45.98787981,2569.2,2569.1,0.02]
[1751513977348,53.97787981,2569.2,2569.1,0.02]
[1751513978252,33.63687981,2569.2,2569.1,0.02]
[1751513978460,43.42787981,2569.2,2569.1,0.02]
[1751513978631,53.97787981,2569.2,2569.1,0.02]
[1751513978833,53.42787981,2569.2,2569.1,0.02]
[1751513979034,53.97787981,2569.2,2569.1,0.02]
[1751513979732,44.18687981,2569.2,2569.1,0.02]
[1751513979961,53.97787981,2569.2,2569.1,0.02]
[1751513980150,54.94509668,2569.2,2569.1,0.02]
[1751513988393,34.56249421,2569.2,2569.1,0.02]
[1751513988697,42.43649421,2569.2,2569.1,0.02]
[1751513990376,43.70619856,2569.2,2569.1,0.02]
[1751513990576,44.17391108,2569.2,2569.1,0.02]
[1751513994192,44.19491108,2569.2,2569.1,0.02]
[1751513994361,48.01535043,2569.2,2569.1,0.02]
[1751513999324,5.20196826,2568.8,2568.7,0.01]
[1751513999527,25.82920029,2568.8,2568.7,0.01]
[1751513999695,32.35146824,2568.8,2568.7,0.01]
[1751514000014,26.38190759,2568.8,2568.7,0.01]
[1751514000317,36.17190759,2568.8,2568.7,0.01]
[1751514001292,36.17290759,2568.8,2568.7,0.01]
[1751514002120,20.62823203,2568.8,2568.7,0.01]
[1751514002323,24.52110029,2568.8,2568.7,0.8309]
[1751514002934,12.75423203,2568.8,2568.7,0.8309]
[1751514003087,20.62723203,2568.8,2568.7,0.8309]
[1751514003288,24.52010029,2568.8,2568.7,0.8309]
[1751514005895,14.73010029,2568.8,2568.7,0.8309]
[1751514006433,24.52010029,2568.8,2568.7,0.8309]
[1751514009806,3.81293776,2569.9,2569.1,0.6272]
[1751514010004,0.02,2570.2,2569.9,10.6272]
[1751514010205,0.02,2570.2,2570.0,13.72016815]
[1751514010414,0.02,2570.2,2570.1,3.89089918]
[1751514010635,0.02,2570.3,2570.2,10.0]
[1751514010803,0.02,2570.3,2570.2,17.61091595]
[1751514011008,1.998,2570.6,2570.5,10.8019]
[1751514011243,1.998,2570.6,2570.5,25.64609386]
[1751514011743,0.02,2570.9,2570.6,10.0]
[1751514011915,0.02,2570.9,2570.8,8.08326795]
[1751514012106,0.02,2570.9,2570.8,8.662832]
[1751514012313,0.01,2571.0,2570.9,4.69158843]
[1751514012509,2.018,2571.2,2571.0,0.8019]
[1751514012853,2.018,2571.2,2571.1,1.37816457]
[1751514013221,2.018,2571.2,2571.1,1.01799485]
[1751514014211,2.018,2571.2,2571.1,0.8019]
[1751514016946,2.018,2571.2,2570.3,0.7879]
[1751514017141,10.07,2571.2,2570.3,0.7879]
[1751514017612,13.95929108,2571.2,2570.3,0.7879]
[1751514018011,10.07,2571.2,2570.3,0.7879]
[1751514018545,13.95925695,2571.2,2570.3,0.7879]
[1751514019119,10.07,2571.2,2570.3,0.7879]
[1751514019452,10.07,2571.2,2570.4,10.0]
[1751514020029,0.1944,2570.9,2570.5,0.1944]
[1751514022358,0.1944,2570.9,2570.6,0.7812]
[1751514024755,10.07,2571.2,2570.6,0.7812]
[1751514025067,0.1944,2571.1,2570.6,0.9756]
[1751514025576,0.1944,2571.1,2570.7,7.28136795]
[1751514026865,0.1944,2571.1,2570.6,0.9756]
[1751514029164,0.1944,2570.9,2570.6,0.7812]
[1751514029886,0.02,2571.9,2571.0,0.55]
[1751514030097,0.02,2571.9,2571.7,0.6072]
[1751514030375,0.02,2571.9,2571.8,0.55226566]
[1751514031357,0.02,2571.9,2571.8,0.55220366]
[1751514034381,0.02,2571.9,2571.8,0.76709787]
[1751514036274,0.02,2571.9,2571.8,1.12595778]
[1751514036603,0.02,2572.3,2572.2,3.88772257]
[1751514036801,1.996,2573.8,2572.7,3.88683867]
[1751514036952,1.996,2573.8,2572.9,11.93680197]
[1751514037292,1.996,2573.8,2572.9,23.78469044]
[1751514037453,2.006,2573.1,2572.9,2.45508847]
[1751514037648,0.01,2573.1,2572.9,2.45508847]
[1751514037849,0.01,2573.1,2572.9,2.09679703]
[1751514037850,2.006,2573.0,2572.9,2.09679703]
[1751514038081,2.006,2573.0,2572.9,1.17989787]
[1751514038383,2.006,2573.0,2572.9,1.53897777]
[1751514038588,0.01,2573.0,2572.9,1.53897777]
[1751514038886,2.006,2573.0,2572.9,1.53897777]
[1751514039276,2.006,2573.0,2572.9,1.17989787]
[1751514041276,2.006,2573.0,2572.9,1.53927211]
[1751514041478,2.006,2573.0,2572.9,0.93207211]
[1751514042107,2.053,2573.0,2572.9,0.93207211]
[1751514043912,2.052,2573.0,2572.9,0.93207211]
[1751514044678,2.052,2573.0,2572.9,0.57426845]
[1751514044874,2.052,2573.0,2572.9,0.21489421]
[1751514047002,0.01,2574.6,2573.2,0.55]
[1751514047208,0.01,2574.6,2573.8,10.0]
[1751514047441,0.01,2574.6,2574.3,0.6072]
[1751514047588,8.361,2574.5,2574.4,0.21489421]
[1751514047791,9.1981,2574.5,2574.4,0.21489421]
[1751514048093,9.1981,2574.5,2573.8,0.6072]
[1751514048094,0.01,2574.1,2573.8,0.89559193]
[1751514048394,2.136,2574.0,2573.8,0.89559193]
[1751514048595,2.136,2573.9,2573.8,0.89559193]
[1751514048997,2.136,2573.9,2573.8,1.52386494]
[1751514049398,0.01,2574.1,2573.8,1.52386494]
[1751514049598,2.136,2574.0,2573.5,1.97571323]
[1751514049820,2.136,2574.0,2573.6,1.27419384]
[1751514049991,2.136,2574.0,2573.5,0.8286]
[1751514050192,2.136,2574.0,2573.6,0.91641647]
[1751514050423,2.136,2574.0,2573.5,0.8286]
[1751514050724,2.136,2574.0,2573.6,0.91618227]
[1751514050913,0.8371,2574.5,2573.6,0.91618227]
[1751514050914,2.136,2574.4,2574.1,10.8317]
[1751514051222,2.136,2574.4,2574.3,13.88455114]
[1751514051429,2.136,2574.4,2574.3,14.79969256]
[1751514052115,0.01,2574.6,2574.3,0.91514142]
[1751514052304,2.136,2574.5,2574.3,10.0]
[1751514052736,2.136,2574.4,2574.3,10.0]
[1751514052916,2.136,2574.4,2574.3,0.9148001]
[1751514053233,2.136,2574.4,2574.3,10.9148001]
[1751514053736,0.01,2574.6,2574.3,10.9148001]